fUSD/lending_fUSD_20250507
["ID","MTS","AMOUNT","RATE_DAILY","PERIOD"]
[360189415,1746612642446,-33862.13,0.00019518,2]
[360189416,1746612642455,-450.0,0.00019518,2]
[360189417,1746612642465,-450.0,0.00019518,2]
[360189418,1746612642474,-1266.49,0.00019518,2]
[360189419,1746612642483,-184.6176813,0.00019518,2]
[360189420,1746612642494,-450.0,0.00019518,2]
[360189421,1746612642503,-460.09,0.00019518,2]
[360189422,1746612642512,-1046.95,0.00019518,2]
[360189423,1746612642521,-450.0,0.00019518,2]
[360189424,1746612642531,-2087.59,0.00019518,2]
[360189425,1746612642540,-289.07947062,0.00019518,2]
[360189426,1746612642550,-450.0,0.00019518,2]
[360189427,1746612642559,-818.45,0.00019518,2]
[360189428,1746612642568,-450.0,0.00019518,2]
[360189429,1746612642577,-450.0,0.00019518,2]
[360189430,1746612642587,-450.0,0.00019518,2]
[360189431,1746612642596,-9130.5,0.00019518,2]
[360189432,1746612642605,-450.0,0.00019518,2]
[360189433,1746612642615,-450.0,0.00019518,2]
[360189434,1746612642625,-450.0,0.00019518,2]
[360189435,1746612642634,-450.0,0.00019518,2]
[360189436,1746612642643,-450.0,0.00019518,2]
[360189437,1746612642652,-450.0,0.00019518,2]
[360189438,1746612642661,-536.87193326,0.00019518,2]
[360189439,1746612642671,-450.0,0.00019518,2]
[360189441,1746612642680,-673.68,0.00019518,2]
[360189442,1746612642689,-807.82,0.00019518,2]
[360189443,1746612642699,-450.0,0.00019518,2]
[360189444,1746612642708,-450.0,0.00019518,2]
[360189445,1746612642718,-419.24,0.00019518,2]
[360189446,1746612642727,-450.0,0.00019518,2]
[360189447,1746612642737,-538.79,0.00019518,2]
[360189448,1746612642747,-15976.16,0.00019518,2]
[360189449,1746612642756,-450.0,0.00019518,2]
[360189450,1746612642766,-450.0,0.00019518,2]
[360189451,1746612642775,-1036.37,0.00019518,2]
[360189452,1746612642784,-1036.37,0.00019518,2]
[360189453,1746612642794,-450.0,0.00019518,2]
[360189454,1746612642803,-450.0,0.00019518,2]
[360189455,1746612642813,-67306.52,0.00019518,2]
[360189456,1746612642822,-6772.81,0.00019518,2]
[360189457,1746612642832,-450.0,0.00019518,2]
[360189458,1746612642841,-450.0,0.00019518,2]
[360189459,1746612642850,-450.0,0.00019518,2]
[360189460,1746612642860,-450.0,0.00019518,2]
[360189461,1746612642869,-450.0,0.00019518,2]
[360189462,1746612642878,-450.0,0.00019518,2]
[360189463,1746612642887,-450.0,0.00019518,2]
[360189464,1746612642896,-450.0,0.00019518,2]
[360189465,1746612642906,-450.0,0.00019518,2]
[360189467,1746612642918,-450.0,0.00019518,2]
[360189469,1746612642929,-450.0,0.00019518,2]
[360189472,1746612642939,-450.0,0.00019518,2]
[360189475,1746612642948,-450.0,0.00019518,2]
[360189477,1746612642957,-811.93,0.00019518,2]
[360189479,1746612642967,-450.0,0.00019518,2]
[360189481,1746612642976,-450.0,0.00019518,2]
[360189482,1746612642986,-984.11,0.00019518,2]
[360189483,1746612642996,-984.11,0.00019518,2]
[360189484,1746612643006,-500.0,0.00019518,2]
[360189485,1746612643015,-450.0,0.00019518,2]
[360189486,1746612643025,-450.0,0.00019518,2]
[360189487,1746612643034,-450.0,0.00019518,2]
[360189488,1746612643044,-508.3,0.00019518,2]
[360189489,1746612643054,-508.3,0.00019518,2]
[360189490,1746612643063,-450.0,0.00019518,2]
[360189491,1746612643072,-450.0,0.00019518,2]
[360189492,1746612643082,-339.39642836,0.00019518,2]
[360189493,1746612643091,-450.0,0.00019518,2]
[360189494,1746612643101,-450.0,0.00019518,2]
[360189495,1746612643110,-450.0,0.00019518,2]
[360189496,1746612643119,-450.0,0.00019518,2]
[360189497,1746612643129,-500.72399423,0.00019518,2]
[360189498,1746612643139,-572.53,0.00019518,2]
[360189499,1746612643148,-500.67,0.00019518,2]
[360189500,1746612643158,-500.67,0.00019518,2]
[360189501,1746612643168,-450.0,0.00019518,2]
[360189502,1746612643177,-450.0,0.00019518,2]
[360189503,1746612643186,-500.0,0.00019518,2]
[360189504,1746612643196,-508.49,0.00019518,2]
[360189505,1746612643206,-964.61,0.00019518,2]
[360189515,1746612643396,-964.61,0.00019518,2]
[360189517,1746612643406,-508.49,0.00019518,2]
[360189519,1746612643415,-450.0,0.00019518,2]
[360189521,1746612643425,-1061.66,0.00019518,2]
[360189523,1746612643434,-450.0,0.00019518,2]
[360189525,1746612643444,-450.0,0.00019518,2]
[360189527,1746612643453,-450.0,0.00019518,2]
[360189529,1746612643462,-450.0,0.00019518,2]
[360189531,1746612643471,-467.4,0.00019518,2]
[360189533,1746612643481,-1078.83,0.00019518,2]
[360189535,1746612643490,-508.37,0.00019518,2]
[360189537,1746612643500,-508.37,0.00019518,2]
[360189539,1746612643509,-450.0,0.00019518,2]
[360189541,1746612643518,-450.0,0.00019518,2]
[360189543,1746612643527,-509.62,0.00019518,2]
[360189545,1746612643536,-1257.02,0.00019518,2]
[360189547,1746612643545,-1869.96,0.00019518,2]
[360189549,1746612643554,-1869.96,0.00019518,2]
[360189551,1746612643564,-450.0,0.00019518,2]
[360189553,1746612643573,-1595.31,0.00019518,2]
[360189555,1746612643582,-1595.31,0.00019518,2]
[360189557,1746612643591,-450.0,0.00019518,2]
[360189559,1746612643600,-545.00334464,0.00019518,2]
[360189561,1746612643609,-450.0,0.00019518,2]
[360189563,1746612643618,-450.0,0.00019518,2]
[360189565,1746612643628,-755.06,0.00019518,2]
[360189567,1746612643637,-491.28,0.00019518,2]
[360189569,1746612643646,-491.28,0.00019518,2]
[360189571,1746612643657,-450.0,0.00019518,2]
[360189573,1746612643667,-450.0,0.00019518,2]
[360189575,1746612643676,-450.0,0.00019518,2]
[360189577,1746612643684,-450.0,0.00019518,2]
[360189579,1746612643693,-450.0,0.00019518,2]
[360189581,1746612643702,-450.0,0.00019518,2]
[360189583,1746612643711,-450.0,0.00019518,2]
[360189585,1746612643721,-1347.96,0.00019518,2]
[360189587,1746612643730,-1347.96,0.00019518,2]
[360189589,1746612643739,-515.0,0.00019518,2]
[360189591,1746612643748,-157.698754,0.00019518,2]
[360189593,1746612643758,-450.0,0.00019518,2]
[360189595,1746612643768,-450.0,0.00019518,2]
[360189597,1746612643777,-450.0,0.00019518,2]
[360189599,1746612643786,-2550.53,0.00019518,2]
[360189601,1746612643796,-1509.53,0.00019518,2]
[360189603,1746612643805,-1533.87,0.00019518,2]
[360189605,1746612643815,-1533.87,0.00019518,2]
[360189607,1746612643824,-450.0,0.00019518,2]
[360189609,1746612643833,-450.0,0.00019518,2]
[360189611,1746612643842,-450.0,0.00019518,2]
[360189613,1746612643851,-687.66,0.00019518,2]
[360189615,1746612643859,-687.66,0.00019518,2]
[360189617,1746612643869,-450.0,0.00019518,2]
[360189619,1746612643877,-450.0,0.00019518,2]
[360189621,1746612643887,-580.22,0.00019518,2]
[360189623,1746612643897,-469.94,0.00019518,2]
[360189625,1746612643906,-583.35,0.00019518,2]
[360189627,1746612643917,-583.35,0.00019518,2]
[360189629,1746612643927,-175.66308307,0.00019518,2]
[360189631,1746612643937,-493.22,0.00019518,2]
[360189633,1746612643946,-450.0,0.00019518,2]
[360189635,1746612643956,-450.0,0.00019518,2]
[360189637,1746612643966,-450.0,0.00019518,2]
[360189639,1746612643975,-466.2173683,0.00019518,2]
[360189641,1746612643984,-450.0,0.00019518,2]
[360189643,1746612643994,-450.0,0.00019518,2]
[360189645,1746612644003,-450.0,0.00019518,2]
[360189647,1746612644012,-450.0,0.00019518,2]
[360189649,1746612644022,-151.0,0.00019518,2]
[360189651,1746612644031,-151.0,0.00019518,2]
[360189653,1746612644040,-450.0,0.00019518,2]
[360189655,1746612644050,-450.0,0.00019518,2]
[360189658,1746612644069,-450.0,0.00019518,2]
[360189660,1746612644080,-450.0,0.00019518,2]
[360189662,1746612644090,-450.0,0.00019518,2]
[360189664,1746612644101,-456.23072875,0.00019518,2]
[360189666,1746612644111,-450.0,0.00019518,2]
[360189668,1746612644122,-462.77035618,0.00019518,2]
[360189669,1746612644132,-450.0,0.00019518,2]
[360189670,1746612644146,-450.0,0.00019518,2]
[360189671,1746612644156,-1519.01,0.00019518,2]
[360189672,1746612644166,-1519.01,0.00019518,2]
[360189673,1746612644177,-1479.36,0.00019518,2]
[360189674,1746612644187,-450.0,0.00019518,2]
[360189675,1746612644198,-450.0,0.00019518,2]
[360189676,1746612644207,-450.0,0.00019518,2]
[360189677,1746612644217,-1603.07,0.00019518,2]
[360189678,1746612644227,-1603.07,0.00019518,2]
[360189679,1746612644238,-450.0,0.00019518,2]
[360189680,1746612644247,-1527.93,0.00019518,2]
[360189681,1746612644258,-1527.93,0.00019518,2]
[360189682,1746612644268,-450.0,0.00019519,2]
[360189684,1746612644277,-571.63685191,0.00019519,2]
[360189686,1746612644288,-597.70853353,0.00019519,2]
[360189688,1746612644298,-450.0,0.00019519,2]
[360189690,1746612644307,-450.0,0.00019519,2]
[360189692,1746612644317,-517.6,0.00019519,2]
[360189694,1746612644327,-450.0,0.00019519,2]
[360189697,1746612644338,-450.0,0.00019519,2]
[360189699,1746612644348,-450.0,0.00019519,2]
[360189701,1746612644358,-1050.69,0.00019519,2]
[360189703,1746612644369,-450.0,0.00019519,2]
[360189705,1746612644379,-654.46,0.00019519,2]
[360189707,1746612644389,-312.63994871,0.00019519,2]
[360189709,1746612644399,-484.62,0.00019519,2]
[360189711,1746612644409,-511.14934025,0.00019519,2]
[360189713,1746612644420,-163.95326583,0.00019519,2]
[360189715,1746612644429,-408.46385219,0.00019519,2]
[360189717,1746612644439,-756.71,0.00019519,2]
[360189719,1746612644449,-450.0,0.00019519,2]
[360189722,1746612644459,-450.0,0.00019519,2]
[360189724,1746612644469,-450.0,0.00019519,2]
[360189726,1746612644479,-732.51,0.00019519,2]
[360189728,1746612644489,-450.0,0.00019519,2]
[360189730,1746612644498,-242.35101051,0.00019519,2]
[360189732,1746612644508,-367.14706827,0.00019519,2]
[360189734,1746612644518,-450.0,0.00019519,2]
[360189736,1746612644527,-205.66,0.00019519,2]
[360189738,1746612644538,-272.45358933,0.00019519,2]
[360189740,1746612644547,-450.0,0.00019519,2]
[360189742,1746612644558,-450.0,0.00019519,2]
[360189744,1746612644568,-450.0,0.00019519,2]
[360189746,1746612644577,-151.0,0.00019519,2]
[360189748,1746612644587,-451.53656902,0.00019519,2]
[360189750,1746612644597,-450.0,0.00019519,2]
[360189752,1746612644607,-151.0,0.00019519,2]
[360189754,1746612644616,-450.0,0.00019519,2]
[360189756,1746612644626,-151.0,0.00019519,2]
[360189759,1746612644636,-450.0,0.00019519,2]
[360189761,1746612644646,-460.72547951,0.00019519,2]
[360189762,1746612644656,-450.0,0.00019519,2]
[360189764,1746612644666,-363.52975574,0.00019519,2]
[360189767,1746612644676,-443.44584406,0.00019519,2]
[360189768,1746612644685,-555.33977631,0.00019519,2]
[360189770,1746612644695,-450.0,0.00019519,2]
[360189772,1746612644705,-450.0,0.00019519,2]
[360189774,1746612644716,-450.0,0.00019519,2]
[360189777,1746612644726,-450.0,0.00019519,2]
[360189779,1746612644736,-155.226145,0.00019519,2]
[360189781,1746612644745,-151.0,0.00019519,2]
[360189783,1746612644755,-450.0,0.00019519,2]
[360189785,1746612644764,-151.0,0.00019519,2]
[360189787,1746612644774,-151.0,0.00019519,2]
[360189789,1746612644784,-492.65599834,0.00019519,2]
[360189791,1746612644795,-151.0,0.00019519,2]
[360189793,1746612644804,-151.0,0.00019519,2]
[360189795,1746612644814,-151.0,0.00019519,2]
[360189797,1746612644823,-151.0,0.00019519,2]
[360189799,1746612644833,-151.0,0.00019519,2]
[360189800,1746612644843,-151.0,0.00019519,2]
[360189803,1746612644853,-450.0,0.00019519,2]
[360189805,1746612644862,-151.0,0.00019519,2]
[360189807,1746612644872,-151.0,0.00019519,2]
[360189809,1746612644881,-151.0,0.00019519,2]
[360189811,1746612644890,-151.0,0.00019519,2]
[360189813,1746612644900,-151.0,0.00019519,2]
[360189815,1746612644910,-151.0,0.00019519,2]
[360189817,1746612644921,-151.0,0.00019519,2]
[360189819,1746612644931,-450.0,0.00019519,2]
[360189821,1746612644941,-450.0,0.00019519,2]
[360189823,1746612644950,-450.0,0.00019519,2]
[360189825,1746612644960,-450.0,0.00019519,2]
[360189827,1746612644970,-188.68328997,0.00019519,2]
[360189829,1746612644980,-450.0,0.00019519,2]
[360189831,1746612644990,-450.0,0.00019519,2]
[360189833,1746612645001,-194.507126,0.00019519,2]
[360189835,1746612645011,-194.507126,0.00019519,2]
[360189837,1746612645021,-156.338084,0.00019519,2]
[360189839,1746612645030,-194.507126,0.00019519,2]
[360189841,1746612645040,-194.507126,0.00019519,2]
[360189843,1746612645050,-450.0,0.00019519,2]
[360189845,1746612645059,-528.78284989,0.00019519,2]
[360189847,1746612645069,-151.0,0.00019519,2]
[360189849,1746612645078,-151.0,0.00019519,2]
[360189851,1746612645088,-450.0,0.00019519,2]
[360189853,1746612645097,-450.0,0.00019519,2]
[360189855,1746612645106,-151.0,0.00019519,2]
[360189857,1746612645116,-151.0,0.00019519,2]
[360189859,1746612645125,-151.0,0.00019519,2]
[360189861,1746612645134,-151.0,0.00019519,2]
[360189863,1746612645144,-151.0,0.00019519,2]
[360189865,1746612645154,-151.0,0.00019519,2]
[360189867,1746612645163,-151.0,0.00019519,2]
[360189869,1746612645173,-151.0,0.00019519,2]
[360189871,1746612645183,-151.0,0.00019519,2]
[360189873,1746612645192,-151.0,0.00019519,2]
[360189875,1746612645202,-796.0,0.00019519,2]
[360189877,1746612645211,-161.27447448,0.00019519,2]
[360189950,1746612645881,-450.0,0.00019517,2]
[360189952,1746612645891,-2.84664266,0.00019518,2]
[360189955,1746612645907,-447.15335734,0.00019518,2]
[360189957,1746612645918,-450.0,0.00019518,2]
[360189959,1746612645928,-450.0,0.00019518,2]
[360189961,1746612645937,-288.72552552,0.00019519,2]
[360189963,1746612645946,-424.33704703,0.00019519,2]
[360189965,1746612645957,-25.66295297,0.00019519,2]
[360189967,1746612645966,-450.0,0.00019519,2]
[360189969,1746612645976,-450.0,0.00019519,2]
[360189971,1746612645985,-423.58704703,0.00019519,2]
[360189974,1746612646009,-26.41295297,0.00019519,2]
[360189976,1746612646018,-450.0,0.00019519,2]
[360189978,1746612646027,-843.15,0.00019519,2]
[360189980,1746612646037,-450.0,0.00019519,2]
[360189982,1746612646046,-41.23704703,0.00019519,2]
[360190060,1746612646796,-477.05808329,0.00019518,2]
[360190061,1746612646805,-543.40295297,0.00019519,2]
[360190062,1746612646814,-151.0,0.00019519,2]
[360190063,1746612646824,-1124.52,0.00019519,2]
[360190064,1746612646833,-862.24708296,0.00019519,2]
[360190165,1746612683749,591.3024,0.00019403,2]
[360190166,1746612692377,1000.0,0.00018572,2]
[360190172,1746612737638,827.54554881,0.00019418,2]
[360190173,1746612742651,827.54554874,0.00019428,2]
[360190174,1746612747694,827.54554874,0.00019438,2]
[360190175,1746612752647,827.54554874,0.00019448,2]
[360190176,1746612757709,827.54554874,0.00019458,2]
[360190177,1746612762632,827.54554874,0.00019468,2]
[360190178,1746612767674,827.54554874,0.00019478,2]
[360190179,1746612772634,827.54554874,0.00019488,2]
[360190180,1746612773870,164.8465093,0.00019418,2]
[360190181,1746612775563,270.27,0.00016645,2]
[360190182,1746612775760,270.27,0.00018909,2]
[360190183,1746612777723,827.54554874,0.00019498,2]
[360190184,1746612813254,1000.0,0.000195,2]
[360190185,1746612852399,150.0,0.00018986,7]
[360190188,1746612948456,208.32696469,0.000195,2]
[360190189,1746612967340,282.3638512,0.00019418,2]
[360190190,1746612971804,282.36385115,0.00019428,2]
[360190191,1746612976805,282.36385115,0.00019437,2]
[360190192,1746612981811,282.36385115,0.00019447,2]
[360190193,1746612986797,282.36385115,0.00019456,2]
[360190194,1746612991797,282.36385115,0.00019466,2]
[360190195,1746612996797,282.36385115,0.00019475,2]
[360190196,1746613001788,282.36385115,0.00019485,2]
[360190197,1746613006790,282.36385115,0.00019494,2]
[360190198,1746613099997,6355.58015026,0.00019252,2]
[360190199,1746613100343,6355.58015026,0.00019213,2]
[360190200,1746613105816,2000.0,0.000195,2]
[360190201,1746613159898,3177.79007513,0.00019234,2]
[360190202,1746613160260,3177.79007513,0.00019225,2]
[360190203,1746613189541,2000.0,0.000195,2]
[360190204,1746613228155,353.01474434,0.00019417,2]
[360190205,1746613233142,353.01474434,0.00019427,2]
[360190206,1746613238292,353.01474434,0.00019436,2]
[360190207,1746613243145,353.01474434,0.00019446,2]
[360190208,1746613248137,353.01474434,0.00019455,2]
[360190209,1746613253127,353.01474434,0.00019465,2]
[360190210,1746613258137,353.01474434,0.00019474,2]
[360190211,1746613263153,353.01474434,0.00019484,2]
[360190212,1746613268131,353.01474434,0.00019493,2]
[360190213,1746613313393,282.36385115,0.00019417,2]
[360190214,1746613324773,195.33848214,0.00019429,2]
[360190215,1746613335104,1800.0,0.00019417,2]
[360190216,1746613376706,326.96,0.00018536,2]
[360190217,1746613398704,4129.0,0.00030137,120]
[360190218,1746613486547,500.0,0.00029589,30]
[360190219,1746613486799,500.0,0.00029863,35]
[360190220,1746613503248,172.65216174,0.00019429,2]
[360190221,1746613508431,300.0,0.00030137,120]
[360190224,1746613682185,1000.0,0.00018535,2]
[360190225,1746613718428,176.50737217,0.00019416,2]
[360190226,1746613723890,50000.0,0.0003,30]
[360190227,1746613768094,257.44,0.00016614,2]
[360190228,1746613768328,257.44,0.00018878,2]
[360190251,1746613832032,-176.50737217,0.00019502,2]
[360190252,1746613832042,-151.0,0.00019503,2]
[360190253,1746613832051,-207.4,0.00019503,2]
[360190254,1746613832061,-217.69486213,0.00019505,2]
[360190255,1746613832072,-62.30513787,0.00019505,2]
[360190256,1746613832081,-151.0,0.00019505,2]
[360190257,1746613832090,-130.49042136,0.00019505,2]
[360190258,1746613832140,-538.16143621,0.00019505,2]
[360190259,1746613832150,-497.94856379,0.00019506,2]
[360190260,1746613832196,-420.97913008,0.00019506,2]
[360190261,1746613832205,-158.33,0.00019506,2]
[360190262,1746613832214,-158.33,0.00019506,2]
[360190263,1746613832224,-158.33,0.00019506,2]
[360190264,1746613832233,-158.33,0.00019506,2]
[360190265,1746613832242,-158.33,0.00019506,2]
[360190266,1746613832251,-158.33,0.00019506,2]
[360190267,1746613832261,-256.31,0.00019506,2]
[360190268,1746613832270,-158.33,0.00019507,2]
[360190269,1746613832279,-200.0,0.00019507,2]
[360190270,1746613832289,-200.0,0.00019512,2]
[360190271,1746613832298,-200.0,0.00019512,2]
[360190272,1746613832308,-1200.0,0.00019514,2]
[360190273,1746613832317,-594.23775285,0.00019515,2]
[360190274,1746613832330,-206.37,0.00019515,2]
[360190275,1746613832339,-450.0,0.00019515,2]
[360190276,1746613832348,-450.0,0.00019515,2]
[360190277,1746613832358,-450.0,0.00019515,2]
[360190278,1746613832367,-450.0,0.00019515,2]
[360190279,1746613832377,-450.0,0.00019515,2]
[360190280,1746613832386,-450.0,0.00019515,2]
[360190281,1746613832395,-450.0,0.00019515,2]
[360190282,1746613832406,-450.0,0.00019515,2]
[360190283,1746613832415,-450.0,0.00019515,2]
[360190284,1746613832424,-450.0,0.00019515,2]
[360190285,1746613832433,-450.0,0.00019515,2]
[360190286,1746613832442,-525.53152316,0.00019515,2]
[360190287,1746613832451,-450.0,0.00019515,2]
[360190288,1746613832460,-460.39,0.00019515,2]
[360190291,1746613832470,-450.0,0.00019515,2]
[360190293,1746613832479,-883.88,0.00019515,2]
[360190296,1746613832488,-450.0,0.00019515,2]
[360190299,1746613832497,-450.0,0.00019515,2]
[360190302,1746613832506,-450.0,0.00019515,2]
[360190305,1746613832515,-1740.71,0.00019515,2]
[360190308,1746613832524,-450.0,0.00019515,2]
[360190311,1746613832533,-450.0,0.00019515,2]
[360190313,1746613832542,-547.54,0.00019515,2]
[360190315,1746613832551,-450.0,0.00019515,2]
[360190317,1746613832560,-1494.48,0.00019515,2]
[360190319,1746613832570,-423.318285,0.00019515,2]
[360190321,1746613832579,-450.0,0.00019515,2]
[360190323,1746613832589,-450.0,0.00019515,2]
[360190325,1746613832598,-450.0,0.00019515,2]
[360190327,1746613832607,-490.198851,0.00019515,2]
[360190329,1746613832616,-500.0,0.00019515,2]
[360190331,1746613832625,-318.61895525,0.00019515,2]
[360190333,1746613832634,-567.225333,0.00019515,2]
[360190335,1746613832644,-450.0,0.00019515,2]
[360190337,1746613832653,-450.0,0.00019515,2]
[360190339,1746613832662,-450.0,0.00019516,2]
[360190341,1746613832671,-450.0,0.00019516,2]
[360190343,1746613832680,-450.0,0.00019516,2]
[360190345,1746613832690,-469.57039548,0.00019516,2]
[360190347,1746613832699,-271.58139678,0.00019516,2]
[360190349,1746613832709,-450.0,0.00019516,2]
[360190351,1746613832718,-538.68545635,0.00019516,2]
[360190353,1746613832728,-450.0,0.00019516,2]
[360190355,1746613832737,-450.0,0.00019516,2]
[360190356,1746613832746,-450.0,0.00019516,2]
[360190357,1746613832755,-450.0,0.00019516,2]
[360190358,1746613832764,-514.29972589,0.00019516,2]
[360190359,1746613832774,-470.0,0.00019516,2]
[360190360,1746613832783,-450.0,0.00019516,2]
[360190361,1746613833050,-450.0,0.00019516,2]
[360190362,1746613833062,-450.0,0.00019516,2]
[360190363,1746613833071,-450.0,0.00019516,2]
[360190364,1746613833081,-450.0,0.00019516,2]
[360190365,1746613833091,-513.18,0.00019516,2]
[360190366,1746613833101,-450.0,0.00019516,2]
[360190367,1746613833111,-450.0,0.00019516,2]
[360190368,1746613833121,-450.0,0.00019516,2]
[360190369,1746613833130,-450.0,0.00019516,2]
[360190370,1746613833139,-465.93051699,0.00019516,2]
[360190371,1746613833149,-450.0,0.00019516,2]
[360190372,1746613833160,-538.87268427,0.00019516,2]
[360190373,1746613833169,-465.74038594,0.00019516,2]
[360190374,1746613833179,-450.0,0.00019516,2]
[360190375,1746613833188,-450.0,0.00019516,2]
[360190376,1746613833198,-450.0,0.00019516,2]
[360190377,1746613833212,-450.0,0.00019516,2]
[360190378,1746613833223,-450.0,0.00019516,2]
[360190379,1746613833233,-450.0,0.00019516,2]
[360190380,1746613833243,-450.0,0.00019516,2]
[360190381,1746613833253,-460.98612458,0.00019516,2]
[360190382,1746613833263,-450.0,0.00019516,2]
[360190383,1746613833274,-450.0,0.00019516,2]
[360190384,1746613833284,-450.0,0.00019516,2]
[360190385,1746613833294,-450.0,0.00019516,2]
[360190386,1746613833304,-450.0,0.00019516,2]
[360190387,1746613833315,-450.0,0.00019516,2]
[360190388,1746613833329,-450.0,0.00019516,2]
[360190389,1746613833339,-450.0,0.00019516,2]
[360190390,1746613833348,-450.0,0.00019516,2]
[360190391,1746613833359,-450.0,0.00019516,2]
[360190392,1746613833368,-450.0,0.00019516,2]
[360190393,1746613833378,-450.0,0.00019516,2]
[360190394,1746613833389,-450.0,0.00019516,2]
[360190395,1746613833400,-450.0,0.00019516,2]
[360190396,1746613833412,-170.11105974,0.00019516,2]
[360190397,1746613833422,-450.0,0.00019516,2]
[360190398,1746613833431,-450.0,0.00019516,2]
[360190399,1746613833441,-450.0,0.00019516,2]
[360190400,1746613833450,-450.0,0.00019516,2]
[360190401,1746613833460,-450.0,0.00019516,2]
[360190402,1746613833470,-450.0,0.00019516,2]
[360190403,1746613833483,-450.0,0.00019516,2]
[360190404,1746613833493,-450.0,0.00019516,2]
[360190405,1746613833503,-450.0,0.00019516,2]
[360190406,1746613833514,-450.0,0.00019516,2]
[360190407,1746613833524,-450.0,0.00019516,2]
[360190408,1746613833534,-450.0,0.00019516,2]
[360190409,1746613833544,-450.0,0.00019516,2]
[360190410,1746613833554,-674.42,0.00019516,2]
[360190411,1746613833564,-450.0,0.00019516,2]
[360190412,1746613833574,-623.19,0.00019516,2]
[360190413,1746613833584,-450.0,0.00019516,2]
[360190414,1746613833594,-651.84,0.00019516,2]
[360190415,1746613833603,-450.0,0.00019516,2]
[360190416,1746613833613,-536.28193456,0.00019516,2]
[360190417,1746613833623,-575.58,0.00019516,2]
[360190418,1746613833633,-750.72,0.00019516,2]
[360190419,1746613833643,-571.76,0.00019516,2]
[360190420,1746613833652,-450.0,0.00019516,2]
[360190421,1746613833662,-495.86173859,0.00019516,2]
[360190422,1746613833672,-278.7453096,0.00019516,2]
[360190423,1746613833682,-941.18,0.00019516,2]
[360190424,1746613833691,-461.49686714,0.00019516,2]
[360190425,1746613833701,-401.2203024,0.00019516,2]
[360190426,1746613833711,-530.72494525,0.00019516,2]
[360190427,1746613833720,-450.0,0.00019516,2]
[360190428,1746613833730,-450.0,0.00019516,2]
[360190429,1746613833740,-450.0,0.00019516,2]
[360190430,1746613833750,-1369.65,0.00019516,2]
[360190431,1746613833762,-450.0,0.00019516,2]
[360190432,1746613833772,-1473.54,0.00019516,2]
[360190433,1746613833782,-181.34232145,0.00019516,2]
[360190434,1746613833791,-223.82842897,0.00019516,2]
[360190435,1746613833801,-500.0,0.00019516,2]
[360190436,1746613833810,-500.0,0.00019516,2]
[360190437,1746613833820,-500.0,0.00019516,2]
[360190438,1746613833830,-166.94674222,0.00019516,2]
[360190439,1746613833839,-500.0,0.00019516,2]
[360190440,1746613833849,-500.0,0.00019516,2]
[360190441,1746613833859,-500.0,0.00019516,2]
[360190442,1746613833868,-500.0,0.00019516,2]
[360190443,1746613833877,-500.0,0.00019516,2]